[Event "Masters Tournament (MTO)"]
[Site "Biel, Switzerland"]
[Date "2026.07.15"]
[Round "3.15"]
[White "Sasikiran, Krishnan"]
[Black "Malli, Suvirr"]
[Result "1-0"]
[TimeControl "100+30+30sec/move"]
[WhiteTitle "-"]
[BlackTitle "-"]
[WhiteFideId "5004985"]
[BlackFideId "1341855"]
[WhiteElo "2546"]
[BlackElo "2120"]

1. d4 {[%clk 01:40:57]} {[%emt 00:00:02]} d5 {[%clk 01:40:52]} {[%emt
00:00:08]} 2. c4 {[%clk 01:41:20]} {[%emt 00:00:07]} c6 {[%clk 01:41:16]}
{[%emt 00:00:07]} 3. Nf3 {[%clk 01:41:40]} {[%emt 00:00:09]} Nf6 {[%clk
01:41:40]} {[%emt 00:00:06]} 4. g3 {[%clk 01:41:56]} {[%emt 00:00:14]} Bg4
{[%clk 01:42:00]} {[%emt 00:00:11]} 5. Bg2 {[%clk 01:41:58]} {[%emt 00:00:27]}
e6 {[%clk 01:42:20]} {[%emt 00:00:10]} 6. Nc3 {[%clk 01:41:17]} {[%emt
00:01:11]} Nbd7 {[%clk 01:40:46]} {[%emt 00:02:04]} 7. cxd5 {[%clk 01:41:18]}
{[%emt 00:00:30]} exd5 {[%clk 01:40:46]} {[%emt 00:00:30]} 8. O-O {[%clk
01:41:16]} {[%emt 00:00:29]} Be7 {[%clk 01:40:36]} {[%emt 00:00:42]} 9. Ne1
{[%clk 01:33:52]} {[%emt 00:07:53]} h6 {[%clk 01:28:29]} {[%emt 00:12:38]} 10.
f3 {[%clk 01:29:00]} {[%emt 00:05:22]} Bh5 {[%clk 01:26:24]} {[%emt 00:02:35]}
11. Nd3 {[%clk 01:27:06]} {[%emt 00:02:24]} Bg6 {[%clk 01:23:52]} {[%emt
00:03:02]} 12. Nf4 {[%clk 01:21:42]} {[%emt 00:05:54]} Bh7 {[%clk 01:22:28]}
{[%emt 00:01:54]} 13. e4 {[%clk 01:20:43]} {[%emt 00:01:29]} g5 {[%clk
01:14:36]} {[%emt 00:08:22]} 14. Nd3 {[%clk 01:14:09]} {[%emt 00:07:04]} Qb6
{[%clk 01:11:31]} {[%emt 00:03:35]} 15. Be3 {[%clk 01:13:55]} {[%emt 00:00:44]}
O-O-O {[%clk 01:09:30]} {[%emt 00:02:31]} 16. e5 {[%clk 01:03:45]} {[%emt
00:10:40]} Ne8 {[%clk 01:07:19]} {[%emt 00:02:41]} 17. f4 {[%clk 00:59:43]}
{[%emt 00:04:32]} gxf4 {[%clk 01:03:27]} {[%emt 00:04:22]} 18. Nxf4 {[%clk
00:56:08]} {[%emt 00:04:05]} Nc7 {[%clk 00:49:52]} {[%emt 00:14:05]} 19. Rf2
{[%clk 00:50:47]} {[%emt 00:05:50]} a6 {[%clk 00:40:56]} {[%emt 00:09:27]} 20.
Rc1 {[%clk 00:43:22]} {[%emt 00:07:55]} Kb8 {[%clk 00:40:34]} {[%emt 00:00:52]}
21. Na4 {[%clk 00:37:13]} {[%emt 00:06:39]} Qa7 {[%clk 00:39:42]} {[%emt
00:01:22]} 22. Nd3 {[%clk 00:32:04]} {[%emt 00:05:38]} Ne6 {[%clk 00:30:36]}
{[%emt 00:09:37]} 23. b4 {[%clk 00:26:07]} {[%emt 00:06:27]} Nb6 {[%clk
00:22:45]} {[%emt 00:08:20]} 24. Ndc5 {[%clk 00:19:23]} {[%emt 00:07:15]} Nc4
{[%clk 00:20:21]} {[%emt 00:02:54]} 25. Rxc4 {[%clk 00:18:12]} {[%emt
00:01:41]} dxc4 {[%clk 00:20:01]} {[%emt 00:00:49]} 26. d5 {[%clk 00:18:39]}
{[%emt 00:00:04]} Nxc5 {[%clk 00:13:56]} {[%emt 00:06:35]} 27. d6 {[%clk
00:18:07]} {[%emt 00:01:02]} b6 {[%clk 00:04:22]} {[%emt 00:10:05]} 28. bxc5
{[%clk 00:09:33]} {[%emt 00:09:04]} b5 {[%clk 00:04:45]} {[%emt 00:00:06]} 29.
Rxf7 {[%clk 00:08:34]} {[%emt 00:01:29]} bxa4 {[%clk 00:01:37]} {[%emt
00:03:38]} 30. Qxa4 {[%clk 00:07:24]} {[%emt 00:01:39]} Qb7 {[%clk 00:01:27]}
{[%emt 00:00:41]} 31. Bxc6 {[%clk 00:06:22]} {[%emt 00:01:32]} Qb1+ {[%clk
00:01:37]} {[%emt 00:00:20]} 32. Rf1 {[%clk 00:06:34]} {[%emt 00:00:18]} Qb2
{[%clk 00:00:33]} {[%emt 00:01:33]} 33. Qxa6 {[%clk 00:06:44]} {[%emt
00:00:21]} 1-0

[Event "Masters Tournament (MTO)"]
[Site "Biel, Switzerland"]
[Date "2026.07.15"]
[Round "3.16"]
[White "Kwiatkowski, Jakub"]
[Black "Ashwath, Kaushik"]
[Result "1/2-1/2"]
[TimeControl "100+30+30sec/move"]
[WhiteTitle "-"]
[BlackTitle "-"]
[WhiteFideId "1348736"]
[BlackFideId "33387230"]
[WhiteElo "2107"]
[BlackElo "2278"]

1. e4 {[%clk 01:40:57]} {[%emt 00:00:02]} e6 {[%clk 01:40:55]} {[%emt
00:00:07]} 2. Nf3 {[%clk 01:41:18]} {[%emt 00:00:08]} d5 {[%clk 01:41:12]}
{[%emt 00:00:13]} 3. e5 {[%clk 01:41:39]} {[%emt 00:00:09]} c5 {[%clk
01:41:37]} {[%emt 00:00:05]} 4. c3 {[%clk 01:41:59]} {[%emt 00:00:09]} Nc6
{[%clk 01:41:57]} {[%emt 00:00:11]} 5. d4 {[%clk 01:42:20]} {[%emt 00:00:08]}
Bd7 {[%clk 01:42:15]} {[%emt 00:00:13]} 6. Be2 {[%clk 01:42:40]} {[%emt
00:00:09]} cxd4 {[%clk 01:42:38]} {[%emt 00:00:07]} 7. cxd4 {[%clk 01:42:59]}
{[%emt 00:00:11]} Nge7 {[%clk 01:43:03]} {[%emt 00:00:05]} 8. Na3 {[%clk
01:43:16]} {[%emt 00:00:13]} Nf5 {[%clk 01:43:25]} {[%emt 00:00:08]} 9. Nc2
{[%clk 01:43:31]} {[%emt 00:00:14]} Be7 {[%clk 01:43:46]} {[%emt 00:00:11]} 10.
O-O {[%clk 01:43:50]} {[%emt 00:00:10]} O-O {[%clk 01:44:11]} {[%emt 00:00:05]}
11. Bd3 {[%clk 01:41:08]} {[%emt 00:03:12]} f6 {[%clk 01:43:57]} {[%emt
00:00:44]} 12. Bf4 {[%clk 01:39:30]} {[%emt 00:02:08]} g5 {[%clk 01:39:14]}
{[%emt 00:05:13]} 13. exf6 {[%clk 01:29:18]} {[%emt 00:10:40]} Bxf6 {[%clk
01:38:47]} {[%emt 00:00:58]} 14. Be5 {[%clk 01:26:16]} {[%emt 00:03:33]} Bxe5
{[%clk 01:22:05]} {[%emt 00:17:12]} 15. Nxe5 {[%clk 01:25:08]} {[%emt
00:01:38]} Nxe5 {[%clk 01:17:36]} {[%emt 00:04:59]} 16. dxe5 {[%clk 01:25:14]}
{[%emt 00:00:24]} Be8 {[%clk 01:12:41]} {[%emt 00:05:25]} 17. Re1 {[%clk
01:13:39]} {[%emt 00:12:05]} Qb6 {[%clk 00:58:19]} {[%emt 00:14:52]} 18. Qd2
{[%clk 01:11:15]} {[%emt 00:02:54]} h6 {[%clk 00:51:08]} {[%emt 00:07:41]} 19.
Ne3 {[%clk 01:04:42]} {[%emt 00:07:03]} Nh4 {[%clk 00:41:56]} {[%emt 00:09:42]}
20. Ng4 {[%clk 00:55:04]} {[%emt 00:10:08]} Kg7 {[%emt 00:09:48]} 21. Nf6
{[%clk 00:53:23]} Qd4 {[%clk 00:25:23]} {[%emt 00:09:56]} 22. Rac1 {[%clk
00:46:34]} {[%emt 00:07:19]} Bg6 {[%clk 00:14:43]} {[%emt 00:11:09]} 23. Rc7+
{[%clk 00:38:45]} {[%emt 00:08:20]} Rf7 {[%clk 00:12:44]} {[%emt 00:02:29]} 24.
Rc3 {[%clk 00:36:52]} {[%emt 00:02:23]} Qb4 {[%clk 00:03:27]} {[%emt 00:09:46]}
25. Bxg6 {[%clk 00:33:14]} {[%emt 00:04:09]} Nxg6 {[%clk 00:02:54]} {[%emt
00:01:03]} 26. a3 {[%clk 00:30:29]} {[%emt 00:03:15]} Qb6 {[%clk 00:02:36]}
{[%emt 00:00:48]} 27. Rf3 {[%clk 00:25:14]} {[%emt 00:05:44]} Raf8 {[%clk
00:01:24]} {[%emt 00:01:43]} 28. b4 {[%clk 00:18:03]} {[%emt 00:07:41]} Qc7
{[%clk 00:00:37]} {[%emt 00:01:17]} 29. Qd3 {[%clk 00:14:59]} {[%emt 00:03:34]}
Qc4 {[%clk 00:00:34]} {[%emt 00:00:33]} 30. Qe3 {[%clk 00:13:07]} {[%emt
00:02:22]} b6 {[%clk 00:00:32]} {[%emt 00:00:33]} 31. Rc1 {[%clk 00:12:26]}
{[%emt 00:01:10]} d4 {[%clk 00:00:32]} {[%emt 00:00:30]} 32. Rxc4 {[%clk
00:07:26]} {[%emt 00:05:30]} dxe3 {[%clk 00:00:58]} {[%emt 00:00:04]} 33. Rxe3
{[%clk 00:07:45]} {[%emt 00:00:11]} Kh8 {[%clk 00:00:32]} {[%emt 00:00:57]} 34.
Rc6 {[%clk 00:05:28]} {[%emt 00:02:45]} Rd8 {[%clk 00:00:33]} {[%emt 00:00:30]}
35. g3 {[%clk 00:04:41]} {[%emt 00:01:17]} Nxe5 {[%clk 00:00:33]} {[%emt
00:00:31]} 36. Rxe5 {[%clk 00:04:17]} {[%emt 00:00:53]} Rxf6 {[%clk 00:00:55]}
{[%emt 00:00:08]} 37. Rexe6 {[%clk 00:03:54]} {[%emt 00:00:54]} Rf3 {[%clk
00:00:32]} {[%emt 00:00:53]} 38. Rxh6+ {[%clk 00:02:44]} {[%emt 00:01:39]} Kg7
{[%clk 00:00:50]} {[%emt 00:00:12]} 39. a4 {[%clk 00:02:03]} {[%emt 00:01:12]}
Rd2 {[%clk 00:00:39]} {[%emt 00:00:40]} 40. Rhd6 {[%clk 00:00:50]} {[%emt
00:01:42]} Rdxf2 {[%clk 00:00:32]} {[%emt 00:00:38]} 41. Rd7+ {[%clk 00:00:52]}
{[%emt 00:00:28]} Rf7 {[%clk 00:00:34]} {[%emt 00:00:28]} 42. Rcc7 {[%clk
00:00:37]} {[%emt 00:00:45]} Rf1+ {[%clk 00:00:32]} {[%emt 00:00:33]} 43. Kg2
{[%clk 00:00:58]} {[%emt 00:00:08]} R1f2+ {[%clk 00:00:31]} {[%emt 00:00:31]}
44. Kh3 {[%clk 00:01:11]} {[%emt 00:00:17]} Rxd7 {[%clk 00:27:11]} {[%emt
00:03:49]} 45. Rxd7+ {[%clk 00:28:02]} {[%emt 00:03:40]} Kf6 {[%clk 00:26:06]}
{[%emt 00:01:34]} 46. Rxa7 {[%clk 00:28:04]} {[%emt 00:00:28]} Rb2 {[%clk
00:21:32]} {[%emt 00:05:05]} 47. b5 {[%clk 00:24:21]} {[%emt 00:04:14]} Rb4
{[%clk 00:03:31]} {[%emt 00:18:30]} 48. Ra8 {[%clk 00:16:27]} {[%emt 00:08:25]}
Kf5 {[%clk 00:02:06]} {[%emt 00:01:55]} 49. g4+ {[%clk 00:13:22]} {[%emt
00:03:34]} Kf4 {[%clk 00:01:35]} {[%emt 00:01:00]} 50. Rf8+ {[%clk 00:12:55]}
{[%emt 00:00:57]} Ke4 {[%clk 00:01:48]} {[%emt 00:00:17]} 51. Rf5 {[%clk
00:12:59]} {[%emt 00:00:26]} Rb3+ {[%clk 00:01:49]} {[%emt 00:00:28]} 52. Kg2
{[%clk 00:13:21]} {[%emt 00:00:10]} Rb2+ {[%clk 00:01:49]} {[%emt 00:00:29]} 53.
Rf2 {[%clk 00:13:33]} {[%emt 00:00:18]} Rb4 {[%clk 00:01:38]} {[%emt 00:00:41]}
54. Ra2 {[%clk 00:13:47]} {[%emt 00:00:17]} Kf4 {[%clk 00:00:52]} {[%emt
00:01:16]} 55. h3 {[%clk 00:14:07]} {[%emt 00:00:11]} Ke4 {[%clk 00:00:35]}
{[%emt 00:00:46]} 56. Re2+ {[%clk 00:04:47]} {[%emt 00:09:51]} Kd4 {[%clk
00:00:40]} {[%emt 00:00:25]} 57. Kf3 {[%clk 00:03:13]} {[%emt 00:02:03]} Rb3+
{[%clk 00:00:55]} {[%emt 00:00:15]} 58. Kg2 {[%clk 00:03:37]} {[%emt 00:00:06]}
Rb4 {[%clk 00:01:07]} {[%emt 00:00:18]} 59. Re6 {[%clk 00:03:19]} {[%emt
00:00:48]} Rxa4 {[%clk 00:01:06]} {[%emt 00:00:31]} 60. Rxb6 {[%clk 00:03:42]}
{[%emt 00:00:08]} Ra2+ {[%clk 00:01:01]} {[%emt 00:00:35]} 61. Kf1 {[%clk
00:04:03]} {[%emt 00:00:08]} Ra1+ {[%clk 00:00:42]} {[%emt 00:00:49]} 62. Ke2
{[%clk 00:04:24]} {[%emt 00:00:08]} Ra2+ {[%clk 00:00:56]} {[%emt 00:00:17]} 63.
Kd1 {[%clk 00:04:43]} {[%emt 00:00:11]} Rh2 {[%clk 00:00:38]} {[%emt 00:00:49]}
64. Rb8 {[%clk 00:02:27]} {[%emt 00:02:46]} Rxh3 {[%clk 00:00:35]} {[%emt
00:00:32]} 65. b6 {[%clk 00:02:43]} {[%emt 00:00:14]} Kc5 {[%clk 00:00:35]}
{[%emt 00:00:31]} 66. b7 {[%clk 00:02:41]} {[%emt 00:00:31]} Kb6 {[%clk
00:00:40]} {[%emt 00:00:25]} 67. Rg8 {[%clk 00:03:04]} {[%emt 00:00:07]} Kxb7
{[%clk 00:01:05]} {[%emt 00:00:05]} 68. Rxg5 {[%clk 00:03:26]} {[%emt
00:00:08]} Rh2 {[%clk 00:01:15]} {[%emt 00:00:20]} 69. Re5 {[%clk 00:02:53]}
{[%emt 00:01:03]} Kc6 {[%clk 00:00:53]} {[%emt 00:00:52]} 70. Ke1 {[%clk
00:03:00]} {[%emt 00:00:23]} Kd6 {[%clk 00:00:42]} {[%emt 00:00:40]} 71. Re2
{[%clk 00:03:22]} {[%emt 00:00:08]} Rxe2+ {[%clk 00:00:35]} {[%emt 00:00:37]}
72. Kxe2 {[%clk 00:03:44]} {[%emt 00:00:08]} Ke5 {[%clk 00:00:52]} {[%emt
00:00:13]} 73. Ke3 {[%clk 00:04:09]} {[%emt 00:00:06]} Kf6 {[%clk 00:01:14]}
{[%emt 00:00:08]} 74. Kf4 {[%clk 00:04:34]} {[%emt 00:00:05]} Kg6 {[%clk
00:01:41]} {[%emt 00:00:03]} 75. g5 {[%clk 00:04:50]} {[%emt 00:00:14]} Kg7
{[%clk 00:02:08]} {[%emt 00:00:03]} 76. Kf5 {[%clk 00:05:10]} {[%emt 00:00:10]}
Kf7 {[%clk 00:02:33]} {[%emt 00:00:05]} 77. g6+ {[%clk 00:05:29]} {[%emt
00:00:11]} Kg7 {[%clk 00:02:53]} {[%emt 00:00:11]} 78. Kg5 {[%clk 00:05:53]}
{[%emt 00:00:05]} Kg8 {[%clk 00:03:14]} {[%emt 00:00:09]} 79. Kf6 {[%clk
00:06:09]} {[%emt 00:00:14]} Kh8 {[%clk 00:03:31]} {[%emt 00:00:14]} 80. g7+
{[%clk 00:06:31]} {[%emt 00:00:08]} Kg8 {[%clk 00:03:57]} {[%emt 00:00:03]} 81.
Kg6 {[%clk 00:06:22]} {[%emt 00:00:08]} 1/2-1/2

[Event "Masters Tournament (MTO)"]
[Site "Biel, Switzerland"]
[Date "2026.07.15"]
[Round "3.17"]
[White "Cherniaev, Alexander"]
[Black "Papaux, Jeremie"]
[Result "1-0"]
[TimeControl "100+30+30sec/move"]
[WhiteTitle "-"]
[BlackTitle "-"]
[WhiteFideId "4117301"]
[BlackFideId "1340867"]
[WhiteElo "2275"]
[BlackElo "2102"]

1. e4 {[%clk 01:39:57]} {[%emt 00:01:03]} c5 {[%clk 01:40:54]} {[%emt
00:00:07]} 2. Nc3 {[%clk 01:39:41]} {[%emt 00:00:45]} Nc6 {[%clk 01:41:14]}
{[%emt 00:00:10]} 3. Bb5 {[%clk 01:39:30]} {[%emt 00:00:41]} Nd4 {[%clk
01:41:34]} {[%emt 00:00:10]} 4. Bc4 {[%clk 01:39:30]} {[%emt 00:00:30]} e6
{[%clk 01:41:24]} {[%emt 00:00:40]} 5. Nge2 {[%clk 01:39:45]} {[%emt 00:00:15]}
Nf6 {[%clk 01:40:41]} {[%emt 00:01:13]} 6. O-O {[%clk 01:39:31]} {[%emt
00:00:44]} a6 {[%clk 01:40:47]} {[%emt 00:00:25]} 7. a4 {[%clk 01:39:42]}
{[%emt 00:00:19]} d5 {[%clk 01:41:10]} {[%emt 00:00:06]} 8. exd5 {[%clk
01:40:08]} {[%emt 00:00:05]} exd5 {[%clk 01:41:31]} {[%emt 00:00:09]} 9. Ba2
{[%clk 01:40:35]} {[%emt 00:00:03]} Bd6 {[%clk 01:41:45]} {[%emt 00:00:16]} 10.
d3 {[%clk 01:40:42]} {[%emt 00:00:23]} Nc6 {[%clk 01:26:29]} {[%emt 00:15:45]}
11. Nf4 {[%clk 01:32:17]} {[%emt 00:08:55]} Bxf4 {[%clk 01:22:05]} {[%emt
00:04:54]} 12. Bxf4 {[%clk 01:32:37]} {[%emt 00:00:10]} h6 {[%clk 01:21:43]}
{[%emt 00:00:52]} 13. Ne2 {[%clk 01:19:32]} {[%emt 00:13:35]} d4 {[%clk
01:15:22]} {[%emt 00:06:50]} 14. Bd2 {[%clk 01:10:40]} {[%emt 00:09:23]} Be6
{[%clk 01:11:58]} {[%emt 00:03:54]} 15. Bxe6 {[%clk 01:10:09]} {[%emt
00:01:02]} fxe6 {[%clk 01:12:24]} {[%emt 00:00:04]} 16. Nf4 {[%clk 01:10:01]}
{[%emt 00:00:38]} Kf7 {[%clk 01:12:31]} {[%emt 00:00:22]} 17. Nh5 {[%clk
01:06:00]} {[%emt 00:04:31]} Qd5 {[%clk 01:07:50]} {[%emt 00:05:10]} 18. Ng3
{[%clk 01:06:28]} {[%emt 00:00:02]} e5 {[%clk 01:06:01]} {[%emt 00:02:19]} 19.
f4 {[%clk 01:04:32]} {[%emt 00:02:27]} exf4 {[%clk 01:05:16]} {[%emt 00:01:15]}
20. Rxf4 {[%clk 01:04:19]} {[%emt 00:00:43]} Kg6 {[%clk 01:00:39]} {[%emt
00:05:07]} 21. Rf5 {[%clk 01:01:54]} {[%emt 00:02:54]} Qd6 {[%clk 00:59:57]}
{[%emt 00:01:12]} 22. Bf4 {[%clk 00:56:42]} {[%emt 00:05:43]} Qe7 {[%clk
00:59:21]} {[%emt 00:01:05]} 23. Qf3 {[%clk 00:57:05]} {[%emt 00:00:09]} Rhf8
{[%clk 00:55:52]} {[%emt 00:03:58]} 24. Rf1 {[%clk 00:57:00]} {[%emt 00:00:35]}
Kh7 {[%clk 00:51:36]} {[%emt 00:04:46]} 25. Bxh6 {[%clk 00:54:50]} {[%emt
00:02:40]} gxh6 {[%clk 00:51:47]} {[%emt 00:00:18]} 26. Rxf6 {[%clk 00:55:05]}
{[%emt 00:00:15]} Rxf6 {[%clk 00:52:05]} {[%emt 00:00:12]} 27. Qxf6 {[%clk
00:55:33]} {[%emt 00:00:03]} Qxf6 {[%clk 00:52:10]} {[%emt 00:00:25]} 28. Rxf6
{[%clk 00:56:01]} Nb4 {[%clk 00:50:40]} {[%emt 00:02:02]} 29. Rb6 {[%clk
00:54:00]} {[%emt 00:02:31]} Nxc2 {[%clk 00:47:09]} {[%emt 00:04:00]} 30. Rxb7+
{[%clk 00:54:23]} {[%emt 00:00:09]} Kh8 {[%clk 00:40:37]} {[%emt 00:07:01]} 31.
Ne4 {[%clk 00:54:37]} {[%emt 00:00:17]} Rf8 {[%clk 00:37:27]} {[%emt 00:03:39]}
32. Nxc5 {[%clk 00:54:55]} {[%emt 00:00:12]} Ne3 {[%clk 00:37:35]} {[%emt
00:00:22]} 33. h4 {[%clk 00:47:01]} {[%emt 00:08:24]} Rg8 {[%clk 00:36:33]}
{[%emt 00:01:31]} 34. Kf2 {[%clk 00:47:09]} {[%emt 00:00:22]} Rxg2+ {[%clk
00:32:47]} {[%emt 00:04:17]} 35. Kf3 {[%clk 00:47:23]} {[%emt 00:00:16]} Rg6
{[%clk 00:29:09]} {[%emt 00:04:08]} 36. Ra7 {[%clk 00:43:30]} {[%emt 00:04:23]}
Rb6 {[%clk 00:22:36]} {[%emt 00:07:02]} 37. b3 {[%clk 00:42:42]} {[%emt
00:01:19]} Rc6 {[%clk 00:22:21]} {[%emt 00:00:45]} 38. b4 {[%clk 00:42:16]}
{[%emt 00:00:55]} Nc2 {[%clk 00:20:17]} {[%emt 00:02:35]} 39. Nxa6 {[%clk
00:42:10]} {[%emt 00:00:36]} Re6 {[%clk 00:20:06]} {[%emt 00:00:39]} 40. Kf4
{[%clk 00:39:45]} {[%emt 00:02:56]} Re3 {[%clk 00:19:56]} {[%emt 00:00:40]} 41.
b5 {[%clk 00:39:48]} {[%emt 00:00:28]} Rxd3 {[%clk 00:19:28]} {[%emt 00:00:57]}
42. b6 {[%clk 00:39:57]} {[%emt 00:00:22]} Rb3 {[%clk 00:19:14]} {[%emt
00:00:44]} 43. b7 {[%clk 00:40:20]} {[%emt 00:00:07]} d3 {[%clk 00:19:30]}
{[%emt 00:00:14]} 44. b8=Q+ {[%clk 00:40:42]} {[%emt 00:00:09]} Rxb8 {[%clk
00:19:48]} 45. Nxb8 {[%clk 00:41:05]} {[%emt 00:00:19]} d2 {[%clk 00:19:37]}
{[%emt 00:00:40]} 46. Rd7 {[%clk 00:41:28]} {[%emt 00:00:07]} 1-0

[Event "Masters Tournament (MTO)"]
[Site "Biel, Switzerland"]
[Date "2026.07.15"]
[Round "3.18"]
[White "Ragavan, Samarth Rajesh"]
[Black "Udelnov, Valentin"]
[Result "1-0"]
[TimeControl "100+30+30sec/move"]
[WhiteTitle "-"]
[BlackTitle "-"]
[WhiteFideId "39918106"]
[BlackFideId "16265734"]
[WhiteElo "2106"]
[BlackElo "2269"]

1. d4 {[%clk 01:40:57]} {[%emt 00:00:04]} f5 {[%clk 01:40:56]} {[%emt
00:00:03]} 2. Bg5 {[%clk 01:41:22]} {[%emt 00:00:05]} Nf6 {[%clk 01:41:13]}
{[%emt 00:00:14]} 3. Bxf6 {[%clk 01:41:33]} {[%emt 00:00:18]} exf6 {[%clk
01:41:34]} {[%emt 00:00:08]} 4. e3 {[%clk 01:41:58]} {[%emt 00:00:05]} d5
{[%clk 01:41:11]} {[%emt 00:00:54]} 5. c4 {[%clk 01:42:11]} {[%emt 00:00:17]}
c6 {[%clk 01:34:34]} {[%emt 00:07:07]} 6. Nc3 {[%clk 01:39:51]} {[%emt
00:02:50]} Be6 {[%clk 01:27:37]} {[%emt 00:07:27]} 7. cxd5 {[%clk 01:36:51]}
{[%emt 00:03:30]} Bxd5 {[%clk 01:25:44]} {[%emt 00:02:23]} 8. Nf3 {[%clk
01:35:05]} {[%emt 00:02:16]} Bb4 {[%clk 01:22:04]} {[%emt 00:04:10]} 9. Bd3
{[%clk 01:35:19]} {[%emt 00:00:16]} Be4 {[%clk 01:11:52]} {[%emt 00:10:41]} 10.
O-O {[%clk 01:35:20]} {[%emt 00:00:29]} Qe7 {[%clk 01:11:39]} {[%emt 00:00:43]}
11. a3 {[%clk 01:32:46]} {[%emt 00:03:04]} Bd6 {[%clk 01:11:36]} {[%emt
00:00:33]} 12. Bxe4 {[%clk 01:30:45]} {[%emt 00:02:31]} fxe4 {[%clk 01:11:39]}
{[%emt 00:00:27]} 13. Nd2 {[%clk 01:31:09]} {[%emt 00:00:07]} f5 {[%clk
01:11:08]} {[%emt 00:01:01]} 14. Nc4 {[%clk 01:31:29]} {[%emt 00:00:09]} Nd7
{[%clk 01:05:22]} {[%emt 00:06:16]} 15. d5 {[%clk 01:27:26]} {[%emt 00:04:33]}
Rc8 {[%clk 01:02:15]} {[%emt 00:03:38]} 16. f3 {[%clk 01:16:43]} {[%emt
00:11:13]} Nf6 {[%clk 00:55:24]} {[%emt 00:07:21]} 17. fxe4 {[%clk 01:07:13]}
{[%emt 00:10:00]} O-O {[%clk 00:26:30]} {[%emt 00:29:23]} 18. Nxd6 {[%clk
01:07:18]} {[%emt 00:00:26]} Qxd6 {[%clk 00:26:54]} {[%emt 00:00:05]} 19. Rxf5
{[%clk 01:06:56]} {[%emt 00:00:52]} cxd5 {[%clk 00:27:02]} {[%emt 00:00:23]} 20.
exd5 {[%clk 01:06:02]} {[%emt 00:01:23]} Qb6 {[%clk 00:25:34]} {[%emt
00:01:59]} 21. Qe2 {[%clk 01:03:28]} {[%emt 00:03:04]} Rfe8 {[%clk 00:15:17]}
{[%emt 00:10:46]} 22. Re1 {[%clk 01:02:52]} {[%emt 00:01:04]} g6 {[%clk
00:15:34]} {[%emt 00:00:16]} 23. Rf4 {[%clk 01:01:08]} {[%emt 00:02:13]} Re5
{[%clk 00:14:02]} {[%emt 00:02:02]} 24. Rd4 {[%clk 00:55:54]} {[%emt 00:05:44]}
Rce8 {[%clk 00:14:02]} {[%emt 00:00:30]} 25. Qd2 {[%clk 00:55:51]} {[%emt
00:00:33]} Qd6 {[%clk 00:07:45]} {[%emt 00:06:48]} 26. h3 {[%clk 00:47:29]}
{[%emt 00:08:52]} Rh5 {[%clk 00:06:29]} {[%emt 00:01:46]} 27. e4 {[%clk
00:46:54]} {[%emt 00:01:05]} Rf8 {[%clk 00:04:18]} {[%emt 00:02:41]} 28. Rf1
{[%clk 00:46:27]} {[%emt 00:00:57]} Qg3 {[%clk 00:03:07]} {[%emt 00:01:40]} 29.
Qf4 {[%clk 00:41:32]} {[%emt 00:05:25]} Rxh3 {[%clk 00:03:25]} {[%emt
00:00:12]} 30. Qxg3 {[%clk 00:41:19]} {[%emt 00:00:43]} Rxg3 {[%clk 00:03:48]}
{[%emt 00:00:08]} 31. e5 {[%clk 00:41:45]} {[%emt 00:00:04]} Nd7 {[%clk
00:02:39]} {[%emt 00:01:39]} 32. Rxf8+ {[%clk 00:41:54]} {[%emt 00:00:20]} Kxf8
{[%clk 00:03:04]} {[%emt 00:00:06]} 33. e6 {[%clk 00:42:16]} {[%emt 00:00:07]}
Ne5 {[%clk 00:03:09]} {[%emt 00:00:26]} 34. Re4 {[%clk 00:42:01]} {[%emt
00:00:43]} Rg5 {[%clk 00:02:50]} {[%emt 00:00:50]} 35. d6 {[%clk 00:42:10]}
{[%emt 00:00:21]} Ke8 {[%clk 00:03:10]} {[%emt 00:00:11]} 36. Kf1 {[%clk
00:41:25]} {[%emt 00:01:14]} Nc6 {[%clk 00:02:39]} {[%emt 00:01:01]} 37. e7
{[%clk 00:40:28]} {[%emt 00:01:28]} Nb8 {[%clk 00:01:45]} {[%emt 00:01:23]} 38.
Rf4 {[%clk 00:40:35]} {[%emt 00:00:22]} Nd7 {[%clk 00:01:28]} {[%emt 00:00:48]}
39. Ne4 {[%clk 00:40:02]} {[%emt 00:01:03]} Rf5 {[%clk 00:00:50]} {[%emt
00:01:08]} 40. Rxf5 {[%clk 00:40:06]} {[%emt 00:00:27]} gxf5 {[%clk 00:01:14]}
{[%emt 00:00:06]} 41. Ng3 {[%clk 00:40:19]} {[%emt 00:00:16]} f4 {[%clk
00:00:45]} {[%emt 00:01:00]} 42. Nf5 {[%clk 00:40:26]} {[%emt 00:00:21]} Nf6
{[%clk 00:01:09]} {[%emt 00:00:07]} 43. Ng7+ {[%clk 00:40:42]} {[%emt
00:00:14]} Kd7 {[%clk 00:01:32]} {[%emt 00:00:08]} 44. Ke2 {[%clk 00:40:59]}
{[%emt 00:00:13]} 1-0